Cogmind - Beta 11.2 @@@ ROGUE MODE // 2022.12.30 @ 15:39:28 // Winter2022/Polymind Player: Azken Zutik Result: Destroyed by B-90 Cyclops with Nova Cannon Performance ------------- Evolutions (8) 4000 Regions Visited (20) 4000 Robots Destroyed (24) 120 Value Destroyed (1020) 1020 Prototype IDs (240) 4800 Alien Tech Used (0) 0 Bonus (12820) 12820 TOTAL SCORE: 26540 Bonus ------- Polymind Skill 6240 Pacifist 200 High Alert Combat Kills 6 Follower Combat Kills 2274 Aligned with FarCom 300 Met Data Miner 300 Used Data Conduit 3000 Pursued by Intercept 500 Cogmind --------- Core Integrity 0/1450 Matter 0/0 Energy 98/100 System Corruption 3% Temperature Cool (9) Movement Core (50) Location -2/Research Parts ------- > --- POWER (1) -------- (None) > --- PROPULSION (1) --- (None) > --- UTILITY (22) ----- (None) > --- WEAPON (2) ------- (None) > --- INVENTORY (0) ---- (None) Peak State ------------ > --- POWER ------------ Heavy Deuterium Engine > --- PROPULSION ------- Combat Antigrav System > --- UTILITY ---------- Advanced Launcher Guidance Computer Improved Target Analyzer Experimental Core Analyzer Improved Armor Integrity Analyzer EX Chip 1 EX Chip 1 EX Chip 1 EX Chip 1 EX Chip 1 EX Chip 1 EX Chip 1 EX Chip 1 EX Chip 1 EX Chip 1 EX Chip 2 EX Chip 2 EX Chip 2 EX Chip 2 EX Chip 2 EX Chip 2 EX Chip 2 EX Chip 2 > --- WEAPON ----------- AWS/EX-DEC > --- INVENTORY -------- Deploy-a-Sentry [Rating: 99] Favorites ----------- Power Backup Power III Engine Backup Power III Propulsion Backup Propulsion III Hover Unit Backup Propulsion III Utility EX Chip 1 Processor Experimental Core Analyzer Hackware EX Chip 1 Weapon Backup Laser III Energy Gun Backup Laser III Build | -11 -10 -10 -9 -9 -9 -8 -8 -7 -6 -6 -6 -6 -6 -6 -5 -5 -4 -4 -3 -2 ------- Run | Scr Mat Min Mat Min Exi Min Mat Fac Fac Was Fac Low Low Dat Pro Fac Fac Ext Res Res Slots Evolved . | . . . . . . . . . . . . . . . . . . . . . Power . | . . . . . . . . . . . . . . . . . . . . . Propulsion . | . . . . . . . . . . . . . . . . . . . . . Utility . | . . . . . . . . . . . . . . . . . . . . . Weapon . | . . . . . . . . . . . . . . . . . . . . . Parts Attached . | . . . . . . . . . . . . . . . . . . . . . Power . | . . . . . . . . . . . . . . . . . . . . . Engine . | . . . . . . . . . . . . . . . . . . . . . Core . | . . . . . . . . . . . . . . . . . . . . . Reactor . | . . . . . . . . . . . . . . . . . . . . . Propulsion . | . . . . . . . . . . . . . . . . . . . . . Treads . | . . . . . . . . . . . . . . . . . . . . . Leg . | . . . . . . . . . . . . . . . . . . . . . Wheel . | . . . . . . . . . . . . . . . . . . . . . Hover . | . . . . . . . . . . . . . . . . . . . . . Flight . | . . . . . . . . . . . . . . . . . . . . . Utility . | . . . . . . . . . . . . . . . . . . . . . Device . | . . . . . . . . . . . . . . . . . . . . . Storage . | . . . . . . . . . . . . . . . . . . . . . Processor . | . . . . . . . . . . . . . . . . . . . . . Hackware . | . . . . . . . . . . . . . . . . . . . . . Protection . | . . . . . . . . . . . . . . . . . . . . . Artifact . | . . . . . . . . . . . . . . . . . . . . . Weapon . | . . . . . . . . . . . . . . . . . . . . . Energy Gun . | . . . . . . . . . . . . . . . . . . . . . Energy Cannon . | . . . . . . . . . . . . . . . . . . . . . Ballistic Gun . | . . . . . . . . . . . . . . . . . . . . . Ballistic Cannon . | . . . . . . . . . . . . . . . . . . . . . Launcher . | . . . . . . . . . . . . . . . . . . . . . Special Weapon . | . . . . . . . . . . . . . . . . . . . . . Impact Weapon . | . . . . . . . . . . . . . . . . . . . . . Slashing Weapon . | . . . . . . . . . . . . . . . . . . . . . Piercing Weapon . | . . . . . . . . . . . . . . . . . . . . . Special Melee Weapon . | . . . . . . . . . . . . . . . . . . . . . Unidentified Prototypes . | . . . . . . . . . . . . . . . . . . . . . Parts Lost 27 | . . . . . . . . 3 2 2 . 1 . . . . 6 1 9 3 Power 3 | . . . . . . . . . . 1 . 1 . . . . 1 . . . Propulsion 2 | . . . . . . . . . . 1 . . . . . . 1 . . . Utility 19 | . . . . . . . . 2 2 . . . . . . . 2 1 9 3 Weapon 3 | . . . . . . . . 1 . . . . . . . . 2 . . . Highest Loss Streak 9 | . . . . . . . . 3 2 1 . 1 . . . . 6 1 9 3 To Critical Strikes . | . . . . . . . . . . . . . . . . . . . . . Average Slot Usage (%) 69 | . . . . . 24 96 96 92 83 71 76 75 76 76 76 76 70 52 47 6 Engine 2 | . . . . . . 3 3 3 3 1 3 2 3 3 3 3 2 . . . Hover 2 | . . . . . . 3 3 3 3 2 3 3 3 3 3 3 1 . . . Processor 7 | . . . . . 3 15 15 15 15 10 7 7 7 7 7 7 7 7 7 1 Hackware 49 | . . . . . 17 69 69 66 60 53 53 53 53 53 53 53 51 45 39 4 Energy Gun 4 | . . . . . . 3 3 2 . 1 7 7 7 7 7 7 5 . . . Naked Turns 303 | . 34 25 54 28 94 . . . . . . . . . . . . . . 68 Heaviest Build 21 | . . . . . 21 21 21 21 11 11 6 6 6 6 6 6 6 . . . Greatest Support 21 | 3 3 3 3 3 21 21 21 21 21 21 13 13 13 13 13 13 8 8 8 8 Greatest Overweight (x) . | . . . . . . . . . . . . . . . . . . . . . Average Overweight (x) . | . . . . . . . . . . . . . . . . . . . . . Largest Inventory Capacity 1 | . . . . . 1 1 1 1 1 1 1 1 1 1 1 1 1 1 1 1 Average Capacity . | . . . . . . 1 1 1 1 1 1 1 1 1 1 1 1 1 1 . Most Carried 1 | . . . . . 1 1 1 1 1 1 1 1 1 1 . . . . . . Average Carried . | . . . . . . 1 1 1 1 1 1 1 1 . . . . . . . Final Capacity 1 | . . . . . 1 1 1 1 1 1 1 1 1 1 1 1 1 1 1 . Final Carried 1 | . . . . . 1 1 1 1 1 1 1 1 1 . . . . . . . Class Distribution -------------------- 93% | Tinkerer 6% | Cogmind Dominant Class ---------------- Cogmind | -10/Materials Cogmind | -10/Mines Cogmind | -9/Materials Cogmind | -9/Mines Cogmind | -9/Exiles Tinkerer | -8/Mines Tinkerer | -8/Materials Tinkerer | -7/Factory Tinkerer | -6/Factory Tinkerer | -6/Waste Tinkerer | -6/Factory Tinkerer | -6/Lower Caves Tinkerer | -6/Lower Caves Tinkerer | -6/Data Miner Tinkerer | -5/Proximity Caves Tinkerer | -5/Factory Tinkerer | -4/Factory Tinkerer | -4/Extension Tinkerer | -3/Research Tinkerer | -2/Research Resources | -11 -10 -10 -9 -9 -9 -8 -8 -7 -6 -6 -6 -6 -6 -6 -5 -5 -4 -4 -3 -2 ----------- Run | Scr Mat Min Mat Min Exi Min Mat Fac Fac Was Fac Low Low Dat Pro Fac Fac Ext Res Res Matter Collected . | . . . . . . . . . . . . . . . . . . . . . Remotely . | . . . . . . . . . . . . . . . . . . . . . Salvage Created 1068 | . . . . . . 164 526 378 . . . . . . . . . . . . Parts 49 | . . . . . . 5 23 21 . . . . . . . . . . . . Haulers Intercepted . | . . . . . . . . . . . . . . . . . . . . . Recyclers Shooed 1 | . . . . . . . . 1 . . . . . . . . . . . . Parts Field Recycled . | . . . . . . . . . . . . . . . . . . . . . Retrieved Matter . | . . . . . . . . . . . . . . . . . . . . . Parts Self-Destructed 40 | . . . . . . . . . . . . 8 8 . 24 . . . . . Prevented 3 | . . . . . . . . . . . . . . . 3 . . . . . Kills | -11 -10 -10 -9 -9 -9 -8 -8 -7 -6 -6 -6 -6 -6 -6 -5 -5 -4 -4 -3 -2 ------- Run | Scr Mat Min Mat Min Exi Min Mat Fac Fac Was Fac Low Low Dat Pro Fac Fac Ext Res Res Combat Hostiles Destroyed 19 | . . . . . . 3 9 7 . . . . . . . . . . . . Melee 1 | . . . . . . . . 1 . . . . . . . . . . . . Guns 13 | . . . . . . 3 7 3 . . . . . . . . . . . . Classes Destroyed 7 | . . . . . . 1 4 2 . . . . . . . . . . . . Recycler 1 | . . . . . . . . 1 . . . . . . . . . . . . Operator 2 | . . . . . . . 1 1 . . . . . . . . . . . . Watcher 2 | . . . . . . . 2 . . . . . . . . . . . . . Swarmer 1 | . . . . . . . . 1 . . . . . . . . . . . . Grunt 14 | . . . . . . 3 6 5 . . . . . . . . . . . . Brawler 1 | . . . . . . . 1 . . . . . . . . . . . . . Sentry 3 | . . . . . . . 2 1 . . . . . . . . . . . . Best Kill Streak 8 | . . . . . . 3 3 8 . . . . . . . . . . . . Combat Bots Only 7 | . . . . . . 3 3 7 . . . . . . . . . . . . Max Kills in Single Turn 2 | . . . . . . 1 1 2 . . . . . . . . . . . . Gunslinging . | . . . . . . . . . . . . . . . . . . . . . Exploded . | . . . . . . . . . . . . . . . . . . . . . Melee 1 | . . . . . . . . 1 . . . . . . . . . . . . Uniques/NPCs Destroyed . | . . . . . . . . . . . . . . . . . . . . . Combat | -11 -10 -10 -9 -9 -9 -8 -8 -7 -6 -6 -6 -6 -6 -6 -5 -5 -4 -4 -3 -2 -------- Run | Scr Mat Min Mat Min Exi Min Mat Fac Fac Was Fac Low Low Dat Pro Fac Fac Ext Res Res Damage Taken 4323 | . 57 . 100 40 . 46 151 203 105 96 18 52 . . 27 . 530 218 1162 1518 Core 3558 | . 57 . 100 40 . 37 32 46 51 96 . . . . 27 . 327 218 1066 1461 Absorbed by Shields 64 | . . . . . . . . . . . . . . . . . . 64 . . Core Remaining (%) 74 | 100 . 77 . . . 55 94 93 . . . . . . 79 100 . 52 18 . Volleys Fired . | . . . . . . . . . . . . . . . . . . . . . Largest . | . . . . . . . . . . . . . . . . . . . . . Hottest . | . . . . . . . . . . . . . . . . . . . . . Shots Fired 52 | . . . . . . 7 25 20 . . . . . . . . . . . . Gun 52 | . . . . . . 7 25 20 . . . . . . . . . . . . Cannon . | . . . . . . . . . . . . . . . . . . . . . Launcher . | . . . . . . . . . . . . . . . . . . . . . Special . | . . . . . . . . . . . . . . . . . . . . . Kinetic . | . . . . . . . . . . . . . . . . . . . . . Thermal . | . . . . . . . . . . . . . . . . . . . . . Explosive . | . . . . . . . . . . . . . . . . . . . . . Electromagnetic 52 | . . . . . . 7 25 20 . . . . . . . . . . . . Robot Hit Streak 26 | . . . . . . 9 21 26 . . . . . . . . . . . . Robot Miss Streak 3 | . . . . . . 1 2 3 . . . . . . . . . . . . Penetration Max . | . . . . . . . . . . . . . . . . . . . . . Secondary Targets . | . . . . . . . . . . . . . . . . . . . . . Autonomous 52 | . . . . . . 7 25 20 . . . . . . . . . . . . Shots Hit Robots 51 | . . . . . . 7 25 19 . . . . . . . . . . . . Core Hits 45 | . . . . . . 7 21 16 . . . . . . . . . . . 1 Critical Kills . | . . . . . . . . . . . . . . . . . . . . . Critical Parts Destroyed . | . . . . . . . . . . . . . . . . . . . . . Critical Strikes 9 | . . . . . . . 2 7 . . . . . . . . . . . . Corrupt 9 | . . . . . . . 2 7 . . . . . . . . . . . . Melee Attacks . | . . . . . . . . . . . . . . . . . . . . . Impact . | . . . . . . . . . . . . . . . . . . . . . Slashing . | . . . . . . . . . . . . . . . . . . . . . Piercing . | . . . . . . . . . . . . . . . . . . . . . Sneak Attacks . | . . . . . . . . . . . . . . . . . . . . . Combat Hostiles . | . . . . . . . . . . . . . . . . . . . . . Follow-up Attacks . | . . . . . . . . . . . . . . . . . . . . . Damage Inflicted 1758 | . . . . . . 232 797 700 . . . . . . . . . . 19 10 Guns 1509 | . . . . . . 232 765 512 . . . . . . . . . . . . Cannons . | . . . . . . . . . . . . . . . . . . . . . Explosions 217 | . . . . . . . 32 185 . . . . . . . . . . . . Melee . | . . . . . . . . . . . . . . . . . . . . . Ramming 32 | . . . . . . . . 3 . . . . . . . . . . 19 10 Kinetic . | . . . . . . . . . . . . . . . . . . . . . Thermal 217 | . . . . . . . 32 185 . . . . . . . . . . . . Explosive . | . . . . . . . . . . . . . . . . . . . . . Electromagnetic 1509 | . . . . . . 232 765 512 . . . . . . . . . . . . Impact . | . . . . . . . . . . . . . . . . . . . . . Slashing . | . . . . . . . . . . . . . . . . . . . . . Piercing . | . . . . . . . . . . . . . . . . . . . . . Highest Corruption 3 | . . . . . . . . . . . . . . . . . . . . 3 Average Corruption 2 | . . . . . . . . . . . . . . . . . . . . 2 Corruption Purged . | . . . . . . . . . . . . . . . . . . . . . Corruption Blocked . | . . . . . . . . . . . . . . . . . . . . . Overload Shots . | . . . . . . . . . . . . . . . . . . . . . Overflow Damage 2 | . . . . . . . . 2 . . . . . . . . . . . . Projectiles . | . . . . . . . . . . . . . . . . . . . . . Explosions 2 | . . . . . . . . 2 . . . . . . . . . . . . Melee . | . . . . . . . . . . . . . . . . . . . . . Knockbacks . | . . . . . . . . . . . . . . . . . . . . . Impact . | . . . . . . . . . . . . . . . . . . . . . Kinetic . | . . . . . . . . . . . . . . . . . . . . . Secondary . | . . . . . . . . . . . . . . . . . . . . . Self-Inflicted Damage 114 | . . . . . . . . 102 . . . . . . . . . . 8 4 Shots 1 | . . . . . . . . 1 . . . . . . . . . . . . Rammed 13 | . . . . . . . . 1 . . . . . 1 . . . . 8 3 Targets Rammed 13 | . . . . . . . . 1 . . . . . 1 . . . . 8 3 Kicked . | . . . . . . . . . . . . . . . . . . . . . Crushed . | . . . . . . . . . . . . . . . . . . . . . Highest Temperature 4 | . . . . . . 3 4 . . . . . . . . . . . . . Average Temperature 3 | . . . . . . 3 3 . . . . . . . . . . . . . Received Heat Transfer 409 | . . . . . . 18 63 21 . . 9 . . . . . 54 19 36 189 Siege Activations . | . . . . . . . . . . . . . . . . . . . . . Robots Corrupted 5 | . . . . . . . 2 3 . . . . . . . . . . . . Combat Hostiles 5 | . . . . . . . 2 3 . . . . . . . . . . . . Parts Fried 7 | . . . . . . 1 4 2 . . . . . . . . . . . . Impact Corruptions . | . . . . . . . . . . . . . . . . . . . . . Robots Melted . | . . . . . . . . . . . . . . . . . . . . . Combat Hostiles . | . . . . . . . . . . . . . . . . . . . . . Parts Melted . | . . . . . . . . . . . . . . . . . . . . . Heat Transferred 150 | . . . . . . . 50 100 . . . . . . . . . . . . Parts Sabotaged . | . . . . . . . . . . . . . . . . . . . . . Parts Stolen . | . . . . . . . . . . . . . . . . . . . . . Parts Stripped . | . . . . . . . . . . . . . . . . . . . . . Power Chain Reactions 1 | . . . . . . . 1 . . . . . . . . . . . . . Missiles Intercepted . | . . . . . . . . . . . . . . . . . . . . . Alert | -11 -10 -10 -9 -9 -9 -8 -8 -7 -6 -6 -6 -6 -6 -6 -5 -5 -4 -4 -3 -2 ------- Run | Scr Mat Min Mat Min Exi Min Mat Fac Fac Was Fac Low Low Dat Pro Fac Fac Ext Res Res Peak Influence 479 | . 8 3 29 47 . 70 333 479 249 108 175 . . . . 471 178 369 247 431 Initial 234 | . . 3 . 10 . . 27 151 234 83 75 . . . . 138 153 26 193 87 Average 187 | . 2 3 14 18 . 24 156 284 241 91 133 . . . . 340 89 191 214 197 Maximum Alert Level 2 | . . . . . . . 1 2 1 . . . . . . 2 . 1 1 2 Low Security (%) 61 | . 100 100 100 100 . 100 65 51 . 100 100 . . . . 18 100 26 25 79 Level 1 28 | . . . . . . . 34 18 100 . . . . . . 42 . 73 74 12 Level 2 10 | . . . . . . . . 29 . . . . . . . 39 . . . 7 Level 3 . | . . . . . . . . . . . . . . . . . . . . . Level 4 . | . . . . . . . . . . . . . . . . . . . . . Level 5 . | . . . . . . . . . . . . . . . . . . . . . High Security . | . . . . . . . . . . . . . . . . . . . . . Max Security . | . . . . . . . . . . . . . . . . . . . . . Squads Dispatched 20 | . . . . . . . . 2 . . . . . . . 6 2 1 2 7 Investigation 8 | . . . . . . . . 1 . . . . . . . 3 1 1 1 1 Extermination . | . . . . . . . . . . . . . . . . . . . . . Reinforcement 8 | . . . . . . . . . . . . . . . . . 1 . 1 6 Assault . | . . . . . . . . . . . . . . . . . . . . . Garrison 2 | . . . . . . . . 1 . . . . . . . 1 . . . . Intercept 2 | . . . . . . . . . . . . . . . . 2 . . . . Searches Triggered . | . . . . . . . . . . . . . . . . . . . . . Construction Impeded . | . . . . . . . . . . . . . . . . . . . . . Haulers Reinforced . | . . . . . . . . . . . . . . . . . . . . . Active Scanning Responses . | . . . . . . . . . . . . . . . . . . . . . Cargo Convoy Interrupts . | . . . . . . . . . . . . . . . . . . . . . Stealth | -11 -10 -10 -9 -9 -9 -8 -8 -7 -6 -6 -6 -6 -6 -6 -5 -5 -4 -4 -3 -2 --------- Run | Scr Mat Min Mat Min Exi Min Mat Fac Fac Was Fac Low Low Dat Pro Fac Fac Ext Res Res Distress Signals 6 | . . . 1 . . . 1 . . . . . . . . 2 . . . 2 Communications Jammed . | . . . . . . . . . . . . . . . . . . . . . Distress Signals . | . . . . . . . . . . . . . . . . . . . . . Times Spotted 146 | . 3 . 6 3 . 5 14 10 2 6 2 10 1 4 7 11 10 9 16 27 Peak Tracking Total 17 | . 3 . 6 3 . 4 4 6 3 6 1 4 2 4 6 5 8 4 16 17 Tactical Retreats 9 | . . . . 1 . . 1 2 . . . . . . . . 1 . . 4 Traps | -11 -10 -10 -9 -9 -9 -8 -8 -7 -6 -6 -6 -6 -6 -6 -5 -5 -4 -4 -3 -2 ------- Run | Scr Mat Min Mat Min Exi Min Mat Fac Fac Was Fac Low Low Dat Pro Fac Fac Ext Res Res Traps Triggered 9 | . . . . . . . 1 1 1 . . . . . . . . . . 6 Indirectly . | . . . . . . . . . . . . . . . . . . . . . Trap Hack Attempts . | . . . . . . . . . . . . . . . . . . . . . Triggered . | . . . . . . . . . . . . . . . . . . . . . Disarmed . | . . . . . . . . . . . . . . . . . . . . . Reprogrammed . | . . . . . . . . . . . . . . . . . . . . . Reused . | . . . . . . . . . . . . . . . . . . . . . Traps Extracted . | . . . . . . . . . . . . . . . . . . . . . Installed . | . . . . . . . . . . . . . . . . . . . . . Triggered 10 | . . . . . . . . 4 1 . . . . . . 1 2 1 . 1 Machines | -11 -10 -10 -9 -9 -9 -8 -8 -7 -6 -6 -6 -6 -6 -6 -5 -5 -4 -4 -3 -2 ---------- Run | Scr Mat Min Mat Min Exi Min Mat Fac Fac Was Fac Low Low Dat Pro Fac Fac Ext Res Res Machines Disabled 6 | . . . . . . . 1 1 . . . . . . 1 3 . . . . Max in Single Turn 1 | . . . . . . . 1 1 . . . . . . . . . . . . Garrison Access 3 | . . . . . . . . 1 . . . . . . . 1 1 . . . Machines Sabotaged . | . . . . . . . . . . . . . . . . . . . . . Garrisons Compromised . | . . . . . . . . . . . . . . . . . . . . . Overloaded Fab Kills . | . . . . . . . . . . . . . . . . . . . . . Hacking | -11 -10 -10 -9 -9 -9 -8 -8 -7 -6 -6 -6 -6 -6 -6 -5 -5 -4 -4 -3 -2 --------- Run | Scr Mat Min Mat Min Exi Min Mat Fac Fac Was Fac Low Low Dat Pro Fac Fac Ext Res Res Machines Accessed 32 | . 1 . 2 . 2 . 1 2 . . 1 . . 4 . 6 3 4 2 4 Terminals 19 | . 1 . 2 . . . 1 1 . . 1 . . . . 2 2 4 2 3 Fabricators 3 | . . . . . . . . . . . . . . . . 3 . . . . Repair Stations . | . . . . . . . . . . . . . . . . . . . . . Recycling Units . | . . . . . . . . . . . . . . . . . . . . . Scanalyzers . | . . . . . . . . . . . . . . . . . . . . . Garrison Access 4 | . . . . . . . . 1 . . . . . . . 1 1 . . 1 Total Hacks 105 | . 2 . 6 . 2 . 2 11 . . 4 . . 30 . 17 12 5 6 8 Successful 80 | . 1 . 2 . 2 . 2 8 . . 3 . . 30 . 12 11 4 4 1 Failed 25 | . 1 . 4 . . . . 3 . . 1 . . . . 5 1 1 2 7 Catastrophic 2 | . . . . . . . . 1 . . . . . . . . . . . 1 Database Lockouts . | . . . . . . . . . . . . . . . . . . . . . Manual 41 | . 2 . 6 . 1 . 2 5 . . 3 . . . . 8 7 . 4 3 Terminals 62 | . 2 . 6 . . . 2 10 . . 4 . . . . 9 11 5 6 7 Fabricators 6 | . . . . . . . . . . . . . . . . 6 . . . . Repair Stations . | . . . . . . . . . . . . . . . . . . . . . Recycling Units . | . . . . . . . . . . . . . . . . . . . . . Scanalyzers . | . . . . . . . . . . . . . . . . . . . . . Garrison Access 5 | . . . . . . . . 1 . . . . . . . 2 1 . . 1 Terminal Hacks 62 | . 1 . 1 . 2 . 2 7 . . 2 . . 30 . 3 8 4 2 . Record 12 | . . . . . 1 . . . . . . . . 11 . . . . . . Part Schematic 12 | . . . . . . . . . . . . . . 12 . . . . . . Robot Schematic 5 | . . . . . . . . . . . . . . 4 . 1 . . . . Prototype ID Bank 3 | . . . . . . . . . . . . . . 3 . . . . . . Open Door 5 | . . . . . . . . . . . . . . . . . 1 4 . . Level Access Points 5 | . . . . . . . 1 1 . . . . . . . 1 1 . 1 . Branch Access Points 4 | . 1 . 1 . . . . . . . 1 . . . . . . . 1 . Emergency Access Points 1 | . . . . . . . . 1 . . . . . . . . . . . . Machine Index 1 | . . . . . . . . 1 . . . . . . . . . . . . Unreport Threat 1 | . . . . . . . . . . . . . . . . . 1 . . . Locate Traps 1 | . . . . . . . . . . . . . . . . 1 . . . . Dispatch Records 1 | . . . . . . . . . . . . . . . . . 1 . . . Maintenance Status 1 | . . . . . . . . . . . . . . . . . 1 . . . Security Status 1 | . . . . . . . . . . . . . . . . . 1 . . . Surveillance Status 1 | . . . . . . . . . . . . . . . . . 1 . . . Patrol Status 1 | . . . . . . . . . . . . . . . . . 1 . . . Recall Extermination 1 | . . . . . . . . 1 . . . . . . . . . . . . Recall Reinforcements 1 | . . . . . . . . 1 . . . . . . . . . . . . Recall Assault 1 | . . . . . . . . 1 . . . . . . . . . . . . Zone Layout 3 | . . . . . . . 1 1 . . 1 . . . . . . . . . EX-Prototype ID Bank 1 | . . . . . 1 . . . . . . . . . . . . . . . Fabricator Hacks 6 | . . . . . . . . . . . . . . . . 6 . . . . Load Schematic 3 | . . . . . . . . . . . . . . . . 3 . . . . Build 3 | . . . . . . . . . . . . . . . . 3 . . . . Repair Station Hacks . | . . . . . . . . . . . . . . . . . . . . . Recycling Unit Hacks . | . . . . . . . . . . . . . . . . . . . . . Scanalyzer . | . . . . . . . . . . . . . . . . . . . . . Garrison Access Hacks 3 | . . . . . . . . 1 . . . . . . . 1 1 . . . Seal Access 3 | . . . . . . . . 1 . . . . . . . 1 1 . . . Unauthorized Hacks 9 | . . . 1 . . . . . . . 1 . . . . 2 2 . 2 1 Terminals 9 | . . . 1 . . . . . . . 1 . . . . 2 2 . 2 1 Assimilate 1 | . . . . . . . . . . . . . . . . . 1 . . . Botnet 8 | . . . 1 . . . . . . . 1 . . . . 2 1 . 2 1 Fabricators . | . . . . . . . . . . . . . . . . . . . . . Repair Stations . | . . . . . . . . . . . . . . . . . . . . . Recycling Units . | . . . . . . . . . . . . . . . . . . . . . Scanalyzers . | . . . . . . . . . . . . . . . . . . . . . Garrison Access . | . . . . . . . . . . . . . . . . . . . . . Data Cores Recovered 3 | . . . . . . . . 1 . . . . . . . 1 1 . . . Used 1 | . . . . . . . . 1 . . . . . . . . . . . . Hacking Detections 16 | . 1 . 2 . . . . 1 . . . . . . . 6 . 1 1 4 Full Trace Events 3 | . . . . . . . . . . . . . . . . 3 . . . . Feedback Events . | . . . . . . . . . . . . . . . . . . . . . Feedback Blocked . | . . . . . . . . . . . . . . . . . . . . . Robot Schematics Acquired 5 | . . . . . . . . . . . . . . 4 . 1 . . . . Robots Built 7 | . . . . . . . . . . . . . . . . 7 . . . . Authchips . | . . . . . . . . . . . . . . . . . . . . . Time 297 | . . . . . . . . . . . . . . . . 297 . . . . Total Robot Build Rating 36 | . . . . . . . . . . . . . . . . 36 . . . . Part Schematics Acquired 12 | . . . . . . . . . . . . . . 12 . . . . . . Parts Built . | . . . . . . . . . . . . . . . . . . . . . Authchips . | . . . . . . . . . . . . . . . . . . . . . Time . | . . . . . . . . . . . . . . . . . . . . . Total Part Build Rating . | . . . . . . . . . . . . . . . . . . . . . Parts Repaired . | . . . . . . . . . . . . . . . . . . . . . Time . | . . . . . . . . . . . . . . . . . . . . . Parts Recycled . | . . . . . . . . . . . . . . . . . . . . . Recycled Matter . | . . . . . . . . . . . . . . . . . . . . . Retrieved Matter . | . . . . . . . . . . . . . . . . . . . . . Retrieved Components . | . . . . . . . . . . . . . . . . . . . . . Parts Scanalyzed . | . . . . . . . . . . . . . . . . . . . . . Part Schematics Acquired . | . . . . . . . . . . . . . . . . . . . . . Parts Damaged . | . . . . . . . . . . . . . . . . . . . . . Bothacking | -11 -10 -10 -9 -9 -9 -8 -8 -7 -6 -6 -6 -6 -6 -6 -5 -5 -4 -4 -3 -2 ------------ Run | Scr Mat Min Mat Min Exi Min Mat Fac Fac Was Fac Low Low Dat Pro Fac Fac Ext Res Res Used RIF Installer . | . . . . . . . . . . . . . . . . . . . . . Robots Hacked . | . . . . . . . . . . . . . . . . . . . . . Non-combat . | . . . . . . . . . . . . . . . . . . . . . Combat . | . . . . . . . . . . . . . . . . . . . . . Robot Hacks Applied . | . . . . . . . . . . . . . . . . . . . . . Relay Couplers Released . | . . . . . . . . . . . . . . . . . . . . . Fabnet Peak Effective % . | . . . . . . . . . . . . . . . . . . . . . Robots Rewired 2 | . . . . . . . . . . . . . . . . . . 2 . . Allies Hacked 1 | . . . . . . . . . . . . . . . 1 . . . . . Hacks Repelled . | . . . . . . . . . . . . . . . . . . . . . Allies | -11 -10 -10 -9 -9 -9 -8 -8 -7 -6 -6 -6 -6 -6 -6 -5 -5 -4 -4 -3 -2 -------- Run | Scr Mat Min Mat Min Exi Min Mat Fac Fac Was Fac Low Low Dat Pro Fac Fac Ext Res Res Total Allies 37 | . . . . 2 . . . . . 19 . . . . . 10 . 6 . . Largest Group 19 | . . . . 2 . . . . . 19 18 18 13 13 11 12 4 6 . . Highest-Rated Group 684 | . . . . 54 . . . . . 684 657 654 481 481 385 400 216 378 . . Highest-Rated Ally 159 | . . . . 31 . . . . . 50 50 50 50 50 47 54 54 159 . . Total Orders . | . . . . . . . . . . . . . . . . . . . . . Ally Attacks 409 | . . . . 4 . . . . . 46 9 62 6 59 73 106 8 36 . . Total Damage 12160 | . . . . 42 . . . . . 2131 175 1651 239 1774 2192 2478 249 1229 . . Kills 74 | . . . . 1 . . . . . 7 2 12 4 4 17 15 3 9 . . Allies Corrupted . | . . . . . . . . . . . . . . . . . . . . . Allies Melted . | . . . . . . . . . . . . . . . . . . . . . Turrets Deployed 1 | . . . . . . . . . . . . . . 1 . . . . . . Intel | -11 -10 -10 -9 -9 -9 -8 -8 -7 -6 -6 -6 -6 -6 -6 -5 -5 -4 -4 -3 -2 ------- Run | Scr Mat Min Mat Min Exi Min Mat Fac Fac Was Fac Low Low Dat Pro Fac Fac Ext Res Res Robot Analysis Total 128 | . . . . . . . . . . . . . . 128 . . . . . . Derelict Logs Recovered 4 | . . . . . . . . . . . . 2 . . 2 . . . . . Drone Launches . | . . . . . . . . . . . . . . . . . . . . . Drone Recoveries . | . . . . . . . . . . . . . . . . . . . . . Exploration | -11 -10 -10 -9 -9 -9 -8 -8 -7 -6 -6 -6 -6 -6 -6 -5 -5 -4 -4 -3 -2 ------------- Run | Scr Mat Min Mat Min Exi Min Mat Fac Fac Was Fac Low Low Dat Pro Fac Fac Ext Res Res Turns Passed 4527 | . 34 25 54 28 126 98 355 204 44 237 230 404 323 142 1086 447 94 263 102 231 Spaces Moved 5320 | 1 68 39 108 56 228 99 293 176 53 299 237 410 369 153 1229 401 162 306 185 448 Core 1986 | 1 68 39 108 56 186 . . . . 202 . . . . . 225 162 306 185 448 Treads . | . . . . . . . . . . . . . . . . . . . . . Legs . | . . . . . . . . . . . . . . . . . . . . . Wheels . | . . . . . . . . . . . . . . . . . . . . . Hover 3334 | . . . . . 42 99 293 176 53 97 237 410 369 153 1229 176 . . . . Flight . | . . . . . . . . . . . . . . . . . . . . . Fastest Speed 50 | 50 50 50 50 50 50 80 80 80 80 50 80 80 80 80 80 50 50 50 50 50 Average Speed 68 | 50 50 50 50 50 55 80 80 80 80 59 80 80 80 80 80 63 50 50 50 50 Slowest Speed 80 | 50 50 50 50 50 80 80 80 80 80 80 80 80 80 80 80 80 50 50 50 50 Overloaded Moves . | . . . . . . . . . . . . . . . . . . . . . Propulsion Burnouts . | . . . . . . . . . . . . . . . . . . . . . Robots Hopped . | . . . . . . . . . . . . . . . . . . . . . Cave-ins Triggered . | . . . . . . . . . . . . . . . . . . . . . Exploration Rate (%) 30 | 2 20 10 14 14 64 25 27 7 3 92 10 61 48 78 98 8 6 34 6 22 Regions Visited 20 Branch Regions 9 Pre-discovered Areas 28 | . . . . . 1 . . . . . . . . 27 . . . . . . Known Exits Taken 9 | . 1 . 1 . . . 1 1 . . 1 1 . . . 1 . 1 1 . Unknown Exits Taken 9 | 1 . 1 . 1 1 1 . . . . . . 1 1 1 . 1 . . . Scrap Searched 5 | . . . . . . 1 . . . . . . 1 . 3 . . . . . Spaces Dug . | . . . . . . . . . . . . . . . . . . . . . Terrain Destroyed 26 | . . . . . . . 6 20 . . . . . . . . . . . . Melee . | . . . . . . . . . . . . . . . . . . . . . Projectile . | . . . . . . . . . . . . . . . . . . . . . AOE 26 | . . . . . . . 6 20 . . . . . . . . . . . . Terrain Rammed . | . . . . . . . . . . . . . . . . . . . . . Walls Destroyed . | . . . . . . . . . . . . . . . . . . . . . Machines Disabled . | . . . . . . . . . . . . . . . . . . . . . Actions | -11 -10 -10 -9 -9 -9 -8 -8 -7 -6 -6 -6 -6 -6 -6 -5 -5 -4 -4 -3 -2 --------- Run | Scr Mat Min Mat Min Exi Min Mat Fac Fac Was Fac Low Low Dat Pro Fac Fac Ext Res Res Total 6171 | . 67 43 107 55 227 117 413 238 55 357 277 485 396 172 1331 594 174 415 193 455 Wait 854 | . . 5 . . . 19 121 62 2 59 41 76 28 18 103 194 13 108 1 4 Move 5301 | . 67 38 107 55 227 98 292 175 53 298 236 409 368 152 1228 400 161 305 184 448 Hop . | . . . . . . . . . . . . . . . . . . . . . Pick Up . | . . . . . . . . . . . . . . . . . . . . . Fast Attach . | . . . . . . . . . . . . . . . . . . . . . Attach . | . . . . . . . . . . . . . . . . . . . . . Detach . | . . . . . . . . . . . . . . . . . . . . . Swap . | . . . . . . . . . . . . . . . . . . . . . Drop 1 | . . . . . . . . . . . . . . 1 . . . . . . Fire . | . . . . . . . . . . . . . . . . . . . . . Melee . | . . . . . . . . . . . . . . . . . . . . . Ram 13 | . . . . . . . . 1 . . . . . 1 . . . . 8 3 Kick . | . . . . . . . . . . . . . . . . . . . . . Crush . | . . . . . . . . . . . . . . . . . . . . . Escape Stasis . | . . . . . . . . . . . . . . . . . . . . . Rewire 2 | . . . . . . . . . . . . . . . . . . 2 . . Trap . | . . . . . . . . . . . . . . . . . . . . . Miscellaneous . | . . . . . . . . . . . . . . . . . . . . . Route ------- -11/Scrapyard -10/Materials (discovered 2 exits: *Min x2) -10/Mines -9/Materials (discovered 2 exits: *Min x2) -9/Mines -9/Exiles -8/Mines -8/Materials (discovered 3 exits: *Fac x3) -7/Factory (discovered 4 exits: *Fac x4) -6/Factory -6/Waste -6/Factory (discovered 2 exits: *Low x2) -6/Lower Caves -6/Lower Caves (discovered 2 exits: *Fac / *Dat) -6/Data Miner -5/Proximity Caves -5/Factory (discovered 4 exits: *Fac x4) -4/Factory (discovered 5 exits: Res x4 / *Ext) -4/Extension -3/Research (discovered 5 exits: *Res x3 / *Qua x2) -2/Research History --------- Turn | Location | Event 1 | -11/Scrapyard | Discovered new exit (range 0) 1 | -11/Scrapyard | Entered Materials 24 | -10/Materials | Identified exit to Mines 35 | -10/Materials | Entered Mines 50 | -10/Mines | Discovered new exit (range 9) 60 | -10/Mines | Entered Materials 69 | -9/Materials | Identified exit to Mines 114 | -9/Materials | Entered Mines 132 | -9/Mines | Deemed a non-threat by the Exiles lab entrance 132 | -9/Mines | Discovered new exit (range 5) 142 | -9/Mines | Entered Exiles 155 | -9/Exiles | Met 8R-AWN 165 | -9/Exiles | Met EX-HEX 180 | -9/Exiles | Met EX-BIN 186 | -9/Exiles | Aligned with FarCom system 186 | -9/Exiles | Given EX-Vault access code 200 | -9/Exiles | Opened EX-Vault 211 | -9/Exiles | Warned to stay clear of 0b10 Research branches 226 | -9/Exiles | Met EX-DEC 229 | -9/Exiles | Learned location of Zion (-7) 236 | -9/Exiles | Took control of EX-DEC (ally) 262 | -9/Exiles | Discovered new exit (range 10) 268 | -9/Exiles | Left Exiles lab with Deploy-a-Sentry 268 | -9/Exiles | Entered Mines 363 | -8/Mines | Discovered new exit (range 4) 366 | -8/Mines | Entered Materials 524 | -8/Materials | Identified exit to Factory 721 | -8/Materials | Entered Factory 761 | -7/Factory | Identified exit to Factory 839 | -7/Factory | Garrison activated, responded to threat 892 | -7/Factory | Destroyed 7 combat bots 902 | -7/Factory | Lost 3 parts (2u1w) 925 | -7/Factory | Entered another Factory area 955 | -6/Factory | Spotted B-75 Beast 969 | -6/Factory | Sucked down chute 969 | -6/Factory | Entered Waste 974 | -6/Waste | Spotted C-40 Crusher 975 | -6/Waste | Spotted C-40 Crusher 991 | -6/Waste | Spotted C-40 Crusher 993 | -6/Waste | Spotted C-40 Crusher 1026 | -6/Waste | Spotted C-40 Crusher 1028 | -6/Waste | Crushed by Compactor (1 part destroyed, 1 dropped) 1087 | -6/Waste | Spotted C-40 Crusher 1093 | -6/Waste | Crushed by Compactor (1 part destroyed, 1 dropped) 1106 | -6/Waste | Warlord forces began an assault 1112 | -6/Waste | Allies destroyed C-40 Crusher 1114 | -6/Waste | Allies destroyed C-40 Crusher 1123 | -6/Waste | Allies destroyed C-40 Crusher 1154 | -6/Waste | Discovered new exit (range 12) 1206 | -6/Waste | Entered Factory 1206 | -6/Factory | Accompanied by 18 allies 1278 | -6/Factory | Identified exit to Lower Caves 1436 | -6/Factory | Entered Lower Caves 1436 | -6/Lower Caves | Accompanied by 18 allies 1457 | -6/Lower Caves | Learned Factory emergency access door positions 1491 | -6/Lower Caves | Identified exit to Lower Caves 1642 | -6/Lower Caves | Spotted B-75 Beast 1656 | -6/Lower Caves | Allies destroyed B-75 Beast 1840 | -6/Lower Caves | Entered another Lower Caves area 1840 | -6/Lower Caves | Accompanied by 13 allies 1846 | -6/Lower Caves | Discovered new exit (range 12) 2133 | -6/Lower Caves | Discovered new exit (range 10) 2163 | -6/Lower Caves | Entered Data Miner 2163 | -6/Data Miner | Accompanied by 13 allies 2163 | -6/Data Miner | Discovered new exit (range 6) 2179 | -6/Data Miner | Met Data Miner 2190 | -6/Data Miner | DAS Turret deployed 2217 | -6/Data Miner | Learned location of Section 7 (-3) 2217 | -6/Data Miner | Acquired the access code to Warlord's prototype stash 2230 | -6/Data Miner | Received God Mode back door access code from Data Miner 2242 | -6/Data Miner | Interfaced with the Data Conduit 2305 | -6/Data Miner | Entered Proximity Caves 2305 | -5/Proximity Caves | Accompanied by 11 allies 2401 | -5/Proximity Caves | Learned Factory trap positions 2608 | -5/Proximity Caves | Learned Factory emergency access door positions 2757 | -5/Proximity Caves | Spotted B-75 Beast 3173 | -5/Proximity Caves | Attracted the attention of an 0b10 base 3353 | -5/Proximity Caves | Discovered new exit (range 8) 3391 | -5/Proximity Caves | Entered Factory 3391 | -5/Factory | Accompanied by 6 allies 3392 | -5/Factory | Loaded intel: 114 trap records 3394 | -5/Factory | Loaded intel: 232 machine locations 3430 | -5/Factory | Identified exit to Factory 3459 | -5/Factory | Fabricated L-41 Fighter (x3) 3569 | -5/Factory | Fabricated P-70 Sage? 3719 | -5/Factory | Garrison activated, responded to threat 3809 | -5/Factory | Fabricated P-70 Sage? 3833 | -5/Factory | Intercept squad dispatched 3838 | -5/Factory | Spotted Tracker 3838 | -5/Factory | Entered another Factory area 3838 | -4/Factory | Accompanied by 4 allies 3840 | -4/Factory | Loaded intel: 273 machine locations 3861 | -4/Factory | Identified exit to Research 3877 | -4/Factory | Spotted B-86 Titan 3930 | -4/Factory | Discovered new exit (range 6) 3932 | -4/Factory | Entered Extension 3933 | -4/Extension | Loaded intel: 35 machine locations 3955 | -4/Extension | Lost 6 parts (1p1n2u2w) 3958 | -4/Extension | Rescued A7 3966 | -4/Extension | Rescued a captive Derelict 3991 | -4/Extension | Rescued a captive Derelict 3994 | -4/Extension | Rescued a captive Derelict 4185 | -4/Extension | Spotted B-86 Titan 4189 | -4/Extension | Spotted B-86 Titan 4194 | -4/Extension | Discovered exit to Research (range 3) 4195 | -4/Extension | Entered Research 4196 | -3/Research | Loaded intel: 107 machine locations 4201 | -3/Research | Discovered new exit (range 12) 4206 | -3/Research | Identified exit to Quarantine 4264 | -3/Research | Identified exit to Research 4274 | -3/Research | Core integrity fell below 50% 4296 | -3/Research | Core integrity fell below 20% 4297 | -3/Research | Entered another Research area 4298 | -2/Research | Loaded intel: 96 machine locations 4325 | -2/Research | Lost 9 parts (9u) 4360 | -2/Research | Spotted B-90 Cyclops 4447 | -2/Research | Core integrity fell below 50% 4460 | -2/Research | Spotted B-90 Cyclops 4461 | -2/Research | Core integrity fell below 20% 4491 | -2/Research | Lost 3 parts (3u) 4521 | -2/Research | Spotted B-90 Cyclops 4528 | -2/Research | Destroyed by B-90 Cyclops with Nova Cannon Last Messages --------------- 04465_ W-44 Eye sends out distress signal. 04467_ B-90 Cyclops activates siege mode. 04467_ U-05 Engineer builds a Wall. 04468_ Triggered Segregator Trap. 04468_ Arcs of energy rise from the floor. 04468_ U-05 Engineer lays Concrete. 04470_ U-05 Engineer builds a Wall. 04481_ Triggered Segregator Trap. 04481_ Arcs of energy rise from the floor. 04486_ O-24 Administrator: "IFF HANDSHAKE FAILED. SECURING TERMINAL." 04493_ ALERT: Hostiles spotted, dispatching reinforcements to Terminal R010. 04514_ P-80 Master resets R-10 Processor, system corruption cleaned. 04520_ K-01 Serf cleans the Terminal. 04521_ W-44 Eye sends out distress signal. 04523_ W-44 Eye suffers critical hit (Meltdown). 04525_ U-05 Engineer builds a Wall. 04525_ Terminal disabled. 04526_ ALERT: Suspicious intruders detected, dispatching Cutter reinforcements to area. Map ----- +----------------------------------------------------+ | ?????????????????????????????????????????????????? | | ??????????????????????????""""""?????????????????? | | ??????????????????????????""""""?????????????????? | | ??????????????????????????""""""?????????????????? | | ?????????????????????????????????????????????????? | | ?????????????????????????????????????????????????? | | ?????????????????????????????????????????????????? | | ?????????????????????????????????????????????????? | | ?????????????????????????????????????????????????? | | ?????????????????????????????????????????????????? | | ?????????????????????????????????????????????????? | | ?????????????????????????????????????????????????? | | """??????????"???????????????????????????????????? | | """????????"""???????????????????????????????????# | | """??????????G???????????????????????????????????# | | """????????"""?????????????????#?????????????????# | | ?????????????"???????????????? #?????????????????# | | ?????????????????????????????? #?????????????????# | | ??????????????????????###+#### +?????????????????# | | ??T???????????????????# #?????????????????? | | ?????????????????????? #?????????????????? | | ??????????????????????? +?????????????????? | | ????????????????????H?? #?????????????##### | | ???????????????????????? #########?????# | | ????????????############# * +????# | | ????????????# #@ k #???????# | | ????????????# ; ###?????# | | ????????????# = # """ k BB #?????# | | ????????????# # p""T""u BB #?????# | | ????????????# """ ?# "" " % ######### | | ????????????# """ ?# p | | ????????????# """ ??+ | | ????????????????? """ ??# | | ??????????????????"""???+ | | ??????????????????"""???#########+################ | | ??????????????????"""??????????? ? ??????????? | | ???????????????????????????????? ?? ????????? | | ??????????????????????????????? ? #???????? | | ??????????????????????????????"""""""? #???????? | | ??????????????????????????????"""""""? #???????? | | ??????????????????????????????"""""""?? #???????? | | ????????????????????????????? ? #???????? | | ???????????????????????????????? ????? #???????? | | ???????????????????????????????????????? #???????? | | ?????????????????????????????????????????#???????? | | ?????????????????????????????????????????????????? | | ?????????????????????????????????????????????????? | | ?????????????????????????????????????????????????? | | ?????????????????????????????????????????????????? | | ?????????????????????????????????????????????????? | +----------------------------------------------------+ Best States ------------- Heat Dissipation 36 Energy Generation 23 Energy Capacity 235 Sight Range 16 Terrain Scan Density 10 Resistance: EM 90 Evasion (%) 50 Launcher Accuracy 40 Target Analysis 6 Core Analysis 8 Armor Integrity Analysis 40 Offensive Hacking 70 Defensive Hacking 56 Item Schematics ----------------- Combat Drone Bay | -6/Data Miner | Free Lgt. Regenerative Plating | -6/Data Miner | Free Cld. Nuclear Pulse Thruster | -6/Data Miner | Free Exp. Heat Sink | -6/Data Miner | Free Neutron Cannon | -6/Data Miner | Free Adv. Medium Treads | -6/Data Miner | Free Imp. Force Field | -6/Data Miner | Free Railgun | -6/Data Miner | Free Remote Force Field | -6/Data Miner | Free Adv. Focal Shield | -6/Data Miner | Free Lgt. Particle Reactor | -6/Data Miner | Free Adv. Remote Datajack | -6/Data Miner | Free Robot Schematics ------------------ A-15 Conveyor | -6/Data Miner | Free B-60 Warrior | -6/Data Miner | Free S-27 Virus | -6/Data Miner | Free L-41 Fighter | -6/Data Miner | Free P-70 Sage | -5/Factory | Hacked Fabricated ------------ L-41 Fighter | x3 | -5/Factory P-70 Sage | x2 | -5/Factory P-70 Sage | x2 | -5/Factory Alien Tech Used ----------------- None Achievements -------------- None Challenges ------------ None Polymind | -11 -10 -10 -9 -9 -9 -8 -8 -7 -6 -6 -6 -6 -6 -6 -5 -5 -4 -4 -3 -2 ---------- Run | Scr Mat Min Mat Min Exi Min Mat Fac Fac Was Fac Low Low Dat Pro Fac Fac Ext Res Res Hosts 1 | . . . . . 1 . . . . . . . . . . . . . . . Combat Hostiles . | . . . . . . . . . . . . . . . . . . . . . Allies 1 | . . . . . 1 . . . . . . . . . . . . . . . Unique Host Classes 1 | . . . . . 1 . . . . . . . . . . . . . . . Average Host Suspicion 66 | . . . . . . 46 84 79 32 64 85 99 . 22 60 86 65 77 69 82 Unsuspicious Activity 16 | . . . . . 16 . . . . . . . . . . . . . . . Returns to Shadow . | . . . . . . . . . . . . . . . . . . . . . Fuzzy Dispatches . | . . . . . . . . . . . . . . . . . . . . . Protomatter Created 1761 | . . . . . . 17 85 135 . 368 . 169 48 210 207 279 . 243 . . Used 33 | . . . . . 33 . . . . . . . . . . . . . . . Decayed 863 | . . . . . . . 22 74 . . . 65 41 27 207 235 . 192 . . Highest Spend 33 | . . . . . 33 . . . . . . . . . . . . . . . Top 5 Hosts by Kills: EX-DEC (-9/Exiles: 19) Game ------ Seed GaussProcessingMapper Manual? 0 Play Time 01:21:23 Cumulative 372.9 hours Start 2022.12.30 @ 12:48:48 End 2022.12.30 @ 15:39:28 Sessions 5 Manual Loads 0 Difficulty Rogue Special Mode Winter2022/Polymind Game No. 177 Rogue 177 Adventurer 0 Explorer 0 Win Type - Total 8 Types 4/1/0/1/2/0/0/0/0 Lore% 67 Gallery% 80 Achievement% 71 Wizard Run 0 Options --------- ASCII 0 Keyboard 0 Movement Mouse Keybinds 0 Fullscreen 1 Font 28/SmallcapsGlow Map View 72x54 Tactical HUD 1 Map Filters NONE Filters NONE Steam 1 RUN: d27d81b4-fb65-4925-9add-ff8f465d76d4